Workbook

Sheet Web form
A1: JetBox Osbourne product configurator | C1: v1.1 | D1: 2024-10-02 | F1: Hide | G1: Hide | H1: Hide | I1: Hide
A2: Click yellow cell. Then click arrow that appears to the right to choose an option. | F2: for | G2: for | H2: for | I2: for
A3: Options with * are considered "default" options. | F3: Customer | G3: Customer | H3: Customer | I3: Customer
A4: Part number and part description text will automatically fill in based on your selections. | F4: Use | G4: Use | H4: Use | I4: Use
A5: All options must be selected to generate a valid configuration and part number.
A6: Then submit this configuration worksheet to the email address below for a quote or further discussion with our technical sales team.
A7: sales@diamondsystems.com
D8: Part number builder text | E8: Part description builder text | F8: Cost | G8: Margin | H8: Price
A9: Base model (no selection required) | D9: JB-OSB | E9: JetBox Osbourne, | F9: 630 | G9: 0.5 | H9: =ROUND(F9/(1-G9),0) -> 1260 | I9: Includes enclosure, OSB-BB01, and OSB-PNL01
A11: =Options!A1 -> Orin Module | B11: Choose One: | D11: =VLOOKUP(B11,Options!A:C,2,FALSE) ->  | E11: =VLOOKUP(B11,Options!A:C,3,FALSE) ->  | F11: =VLOOKUP(B11,Options!A:F,4,FALSE) -> 0 | G11: =VLOOKUP(B11,Options!A:F,5,FALSE) -> 0 | H11: =VLOOKUP(B11,Options!A:F,6,FALSE) -> 0
A13: =Options!G1 -> Integrated mass storage | B13: Choose One: | D13: =VLOOKUP(B13,Options!G:I,2,FALSE) ->  | E13: =VLOOKUP(B13,Options!G:I,3,FALSE) ->  | F13: =VLOOKUP(B13,Options!G:L,4,FALSE) -> 0 | G13: =VLOOKUP(B13,Options!G:L,5,FALSE) -> 0 | H13: =VLOOKUP(B13,Options!G:L,6,FALSE) -> 0
A15: =Options!M1 -> GMSL Cameras | B15: Choose One: | D15: =VLOOKUP(B15,Options!M:O,2,FALSE) ->  | E15: =VLOOKUP(B15,Options!M:R,3,FALSE) ->  | F15: =VLOOKUP(B15,Options!M:R,4,FALSE) -> 0 | G15: =VLOOKUP(B15,Options!M:R,5,FALSE) -> 0 | H15: =VLOOKUP(B15,Options!M:R,6,FALSE) -> 0
A17: =Options!S1 -> Expansion I/O | B17: Choose One: | D17: =VLOOKUP(B17,Options!S:U,2,FALSE) ->  | E17: =VLOOKUP(B17,Options!S:U,3,FALSE) ->  | F17: 0 | G17: 0.5 | H17: =F17/(1-G17) -> 0 | I17: Enter total cost for custom I/O
I18: in green cell (boards + cables)
B19: <Enter additional I/O details here. Cell will expand as needed.>
A21: Your system part number: | B21: =_xlfn.CONCAT(D9:D17) -> JB-OSB | F21: 75 | H21: 150 | I21: Assembly / test labor
A22: Your system description: | B22: =_xlfn.CONCAT(E9:E17) -> JetBox Osbourne, | F22: =SUM(F9:F21) -> 705 | H22: =SUM(H9:H21) -> 1410 | I22: Calculated price
F23: BOM cost | H23: 0 | I23: Bonus
H24: 10 | I24: Rounding
H25: =MROUND(H23+H22,H24) -> 1410 | I25: Qty 1 price end user
H26: =H25-F22 -> 705 | I26: Margin $
H27: =H26/H25 -> 0.5 | I27: Margin %
H28: =LEN(B22) -> 17 | I28: Description length

Sheet Options (hidden)
A1: Orin Module | B1: Module | C1: Module | D1: Module | E1: Module | F1: Module | G1: Integrated mass storage | H1: SSD | I1: SSD | J1: SSD | K1: SSD | L1: SSD | M1: GMSL Cameras | N1: GMSL | O1: GMSL | P1: GMSL | Q1: GMSL | R1: GMSL | S1: Expansion I/O | T1: Expansion | U1: Expansion
A2: Choose one: | G2: Choose one: | M2: Choose one: | S2: Choose one:
A3: *Orin 32GB | B3: -32G | C3: Orin 32GB, | D3: 999 | E3: 0.3 | F3: =ROUND(D3/(1-E3),0) -> 1427 | G3: *1TB M.2 2280 SSD | H3: -1T | I3: 1TB SSD, | J3: 92.5 | K3: 0.4 | L3: =ROUND(J3/(1-K3),0) -> 154 | M3: *No GMSL | N3: -G0 | O3: No GMSL | P3: 0 | Q3: 0.5 | R3: =ROUND(P3/(1-Q3),0) -> 0 | S3: *My system has no additional I/O requirements | T3: -01
A4: Orin 64GB | B4: -64G | C4: Orin 64GB, | D4: 1799 | E4: 0.3 | F4: =ROUND(D4/(1-E4),0) -> 2570 | G4: 2TB M.2 2280 SSD | H4: -2T | I4: 2TB SSD, | J4: 157.9 | K4: 0.4 | L4: =ROUND(J4/(1-K4),0) -> 263 | M4: 1 GMSL | N4: -G1 | O4: 1 GMSL | P4: 325 | Q4: 0.5 | R4: =ROUND(P4/(1-Q4),0) -> 650 | S4: My system requires additional I/O (list below) | T4: -XX (requires factory review) | U4: (requires factory review)
A5: Orin Industrial | B5: -64GIT | C5: Orin 64GB Industrial, | D5: 2349 | E5: 0.3 | F5: =ROUND(D5/(1-E5),0) -> 3356 | G5: 512GB M.2 2280 SSD | H5: -512G | I5: 512GB SSD, | J5: 59.6 | K5: 0.4 | L5: 99 | M5: 2 GMSL | N5: -G2 | O5: 2 GMSL | P5: 350 | Q5: 0.5 | R5: 700
G6: No additional SSD | I6: No SSD, | J6: 0 | K6: 0.4 | L6: 0 | M6: 3 GMSL | N6: -G3 | O6: 3 GMSL | P6: 375 | Q6: 0.5 | R6: 750
M7: 4 GMSL | N7: -G4 | O7: 4 GMSL | P7: 400 | Q7: 0.5 | R7: 800
M8: 5 GMSL | N8: -G5 | O8: 5 GMSL | P8: 425 | Q8: 0.5 | R8: 850
M9: 6 GMSL | N9: -G6 | O9: 6 GMSL | P9: 450 | Q9: 0.5 | R9: 900
M10: 7 GMSL | N10: -G7 | O10: 7 GMSL | P10: 475 | Q10: 0.5 | R10: 950
M11: 8 GMSL | N11: -G8 | O11: 8 GMSL | P11: 500 | Q11: 0.5 | R11: 1000

Sheet Instructions (hidden)
A1: Instructions to publish customer version of this spreadsheet
A2: Select Options tab, Right click, Hide.
A3: Select this tab, Right click, Hide.
A4: On Web form tab, select all yellow user entry cells (ctrl+click to select all at once).
A5: Right click, Format cells.
A6: Select Protection tab. Set options as shown at right. This should already be configured.
A7: On Web form tab, select all columns with red Hide labels. Right click, Hide.
A8: Top menu: Review, Protect Sheet. Configure options as shown. Enter password (twice).
A9: Top menu: Review, Protect Workbook. Configure options as shown. Enter password (twice).
A10: Use same standard password for everything.
A11: Save file with "(customer)" appended to filename. Preserve all existing filename text.
A12: This new customer file can be given to customers and salespeople for their use.
A13: Original file should not be distributed outside the company.
